[Event "Queens Festival Final-A 2022"]
[Site "Tornelo"]
[Date "2022.06.25"]
[Round "9.4"]
[White "Ismayil, Malak"]
[Black "Balabayeva, Xeniya"]
[Result "1-0"]
[ECO "B15"]
[WhiteElo "2001"]
[BlackElo "2177"]
[Annotator "RC"]
[PlyCount "123"]
[EventDate "2022.06.24"]
[EventType "tourn"]
[EventCountry "NET"]
[SourceTitle "playchess.com"]
[Source "ChessBase"]
[SourceQuality "1"]
[TimeControl "180+2"]

1. e4 {[%emt 0:00:02]} c6 {[%emt 0:00:04]} 2. d4 {[%emt 0:00:03]} d5 {[%emt 0:00:00]} 3. Nc3 {[%emt 0:00:01]} dxe4 {[%emt 0:00:02]} 4. Nxe4 {[%emt 0:00:01]} Nf6 {[%emt 0:00:01]} 5. Nxf6+ {[%emt 0:00:01]} exf6 {[%emt 0:00:00]} 6. Nf3 {[%emt 0:00:04]} Bd6 {[%emt 0:00:00]} 7. c3 {[%emt 0:00:02]} O-O {[%emt 0:00:02]} 8. Be2 {[%emt 0:00:02]} Re8 {[%emt 0:00:03]} 9. O-O {[%emt 0:00:02]} Nd7 {[%emt 0:00:01]} 10. Qc2 {[%emt 0:00:02]} Nf8 {[%emt 0:00:02]} 11. Be3 {[%emt 0:00:03]} Bg4 {[%emt 0:00:03]} 12. h3 {[%emt 0:00:02]} Bh5 {[%emt 0:00:02]} 13. Rae1 {[%emt 0:00:04]} Qc7 {[%emt 0:00:04]} 14. Nd2 {[%emt 0:00:04]} Bxe2 {[%emt 0:00:08]} 15. Rxe2 {[%emt 0:00:02]} Ng6 {[%emt 0:00:01]} 16. Ne4 {[%emt 0:00:02]} Be7 {[%emt 0:00:11]} 17. Ng3 {[%emt 0:00:08]} Bf8 {[%emt 0:00:19]} 18. Rfe1 {[%emt 0:00:02]} Re6 {[%emt 0:00:03]} 19. Qd2 {[%emt 0:00:21]} Qd7 {[%emt 0:00:17]} 20. c4 {[%emt 0:00:05]} Rae8 {[%emt 0:00:10]} 21. Rd1 {[%emt 0:00:06]} Rd6 {[%emt 0:00:23]} 22. Qd3 {[%emt 0:00:08]} b5 {[%emt 0:00:34]} 23. b3 {[%emt 0:00:03]} bxc4 {[%emt 0:00:08]} 24. bxc4 {[%emt 0:00:02]} Rde6 {[%emt 0:00:10]} 25. Nf5 {[%emt 0:00:06]} Ne7 {[%emt 0:00:09]} 26. Ng3 {[%emt 0:00:11]} Rd8 {[%emt 0:00:12]} 27. Rb2 {[%emt 0:00:05]} Ng6 {[%emt 0:00:23]} 28. Rdb1 {[%emt 0:00:03]} Bd6 {[%emt 0:00:05]} 29. Rb7 {[%emt 0:00:02]} Qe8 {[%emt 0:00:04]} 30. Nf5 {[%emt 0:00:06]} Bf4 {[%emt 0:00:07]} 31. g3 {[%emt 0:00:16]} Bxe3 {[%emt 0:00:02]} 32. fxe3 {[%emt 0:00:01]} Ne5 {[%emt 0:00:04]} 33. Qe2 {[%emt 0:00:11]} Nd7 {[%emt 0:00:01]} 34. R1b3 {[%emt 0:00:41]} g6 {[%emt 0:00:03]} 35. Nh4 {[%emt 0:00:04]} Re4 {[%emt 0:00:04]} 36. Qf3 {[%emt 0:00:05]} Qe6 {[%emt 0:00:02]} 37. Kh2 {[%emt 0:00:04]} Nf8 {[%emt 0:00:03]} 38. Ng2 {[%emt 0:00:06]} Re8 {[%emt 0:00:02]} 39. Rxa7 {[%emt 0:00:09]} Qxc4 {[%emt 0:00:01]} 40. Rbb7 {[%emt 0:00:02]} f5 {[%emt 0:00:06]} 41. a4 {[%emt 0:00:07]} Qd5 {[%emt 0:00:02]} 42. Qf2 {[%emt 0:00:07]} Ne6 {[%emt 0:00:03]} 43. Rxf7 {[%emt 0:00:05]} Ng5 {[%emt 0:00:01]} 44. Rg7+ {[%emt 0:00:03]} Kh8 {[%emt 0:00:02]} 45. h4 {[%emt 0:00:03]} Ne6 {[%emt 0:00:03]} 46. Rxh7+ {[%emt 0:00:02]} Kg8 {[%emt 0:00:01]} 47. Rhd7 {[%emt 0:00:07]} Qb3 {[%emt 0:00:02]} 48. h5 {[%emt 0:00:05]} Nf8 {[%emt 0:00:03]} 49. Rg7+ {[%emt 0:00:03]} Kh8 {[%emt 0:00:02]} 50. hxg6 {[%emt 0:00:01]} Qe6 {[%emt 0:00:03]} 51. Qe2 {[%emt 0:00:03]} Rg4 {[%emt 0:00:01]} 52. Nf4 {[%emt 0:00:08]} Qf6 {[%emt 0:00:02]} 53. Qg2 {[%emt 0:00:03]} Qxg7 {[%emt 0:00:02]} 54. Rxg7 {[%emt 0:00:02]} Kxg7 {[%emt 0:00:00]} 55. Qf3 {[%emt 0:00:01]} Re4 {[%emt 0:00:02]} 56. Ng2 {[%emt 0:00:03]} Nxg6 {[%emt 0:00:02]} 57. Qxf5 {[%emt 0:00:01]} Ne7 {[%emt 0:00:03]} 58. Qd7 {[%emt 0:00:02]} Rg6 {[%emt 0:00:02]} 59. a5 {[%emt 0:00:02]} Rgg4 {[%emt 0:00:03]} 60. a6 {[%emt 0:00:02]} Rg5 {[%emt 0:00:02]} 61. a7 {[%emt 0:00:02]} Ra5 {[%emt 0:00:01]} 62. Qb7 {[%emt 0:00:01]} 1-0